[Event "Late-Titled-Tuesday-Blitz-April-16-2024"]
[Site "Chess.com"]
[Date "2024.04.16"]
[Round "3"]
[White "masterofpuppets2"]
[Black "SRob2003"]
[Result "1-0"]
[WhiteElo "2485"]
[BlackElo "2667"]
[TimeControl "180+1"]
[EndTime "14:29:01 PDT"]
[Termination "masterofpuppets2 won by checkmate"]

1. d4 {[%clk 0:03:00.9]} 1... Nf6 {[%clk 0:02:59.7]} 2. c4 {[%clk 0:03:01.4]}
2... e6 {[%clk 0:02:59.9]} 3. Nc3 {[%clk 0:03:01.1]} 3... Bb4 {[%clk 0:03:00.4]}
4. Qc2 {[%clk 0:03:01.7]} 4... O-O {[%clk 0:03:00.3]} 5. e4 {[%clk 0:03:01.7]}
5... d5 {[%clk 0:03:00.7]} 6. e5 {[%clk 0:03:02]} 6... Ne4 {[%clk 0:02:58.7]} 7.
Bd3 {[%clk 0:03:02.5]} 7... c5 {[%clk 0:02:57.8]} 8. Nf3 {[%clk 0:03:02.5]} 8...
cxd4 {[%clk 0:02:53.9]} 9. Nxd4 {[%clk 0:03:03.4]} 9... Nd7 {[%clk 0:02:48.2]}
10. Bf4 {[%clk 0:03:03.3]} 10... Qh4 {[%clk 0:02:47.9]} 11. g3 {[%clk
0:03:03.6]} 11... Qh5 {[%clk 0:02:43.8]} 12. O-O {[%clk 0:03:03]} 12... Bxc3
{[%clk 0:02:40.6]} 13. bxc3 {[%clk 0:03:03.1]} 13... g5 {[%clk 0:02:27.2]} 14.
cxd5 {[%clk 0:03:02.1]} 14... exd5 {[%clk 0:02:26]} 15. Be2 {[%clk 0:02:37.2]}
15... Qg6 {[%clk 0:02:22]} 16. Be3 {[%clk 0:02:35.6]} 16... Nxe5 {[%clk
0:02:18.7]} 17. f3 {[%clk 0:02:35]} 17... Nd6 {[%clk 0:02:11.7]} 18. Qxg6+
{[%clk 0:02:33.1]} 18... hxg6 {[%clk 0:02:07.6]} 19. Bxg5 {[%clk 0:02:34]} 19...
f6 {[%clk 0:02:03.6]} 20. Bf4 {[%clk 0:02:33.7]} 20... g5 {[%clk 0:02:01.5]} 21.
Bc1 {[%clk 0:02:30.1]} 21... Nec4 {[%clk 0:01:45.5]} 22. g4 {[%clk 0:02:16.8]}
22... Bd7 {[%clk 0:01:39.6]} 23. Kf2 {[%clk 0:02:15.9]} 23... Rac8 {[%clk
0:01:29.7]} 24. Re1 {[%clk 0:02:05.6]} 24... Rfe8 {[%clk 0:01:00.9]} 25. h4
{[%clk 0:02:03]} 25... gxh4 {[%clk 0:01:00.2]} 26. Rh1 {[%clk 0:02:02.8]} 26...
Ne5 {[%clk 0:00:56.4]} 27. Bd2 {[%clk 0:01:23]} 27... Ndc4 {[%clk 0:00:30.7]}
28. Bc1 {[%clk 0:00:49.5]} 28... Ng6 {[%clk 0:00:30.6]} 29. Bd3 {[%clk 0:00:49]}
29... Nce5 {[%clk 0:00:30.5]} 30. Bc2 {[%clk 0:00:44.6]} 30... Rxc3 {[%clk
0:00:22.8]} 31. Bd2 {[%clk 0:00:36.6]} 31... Rcc8 {[%clk 0:00:09.9]} 32. Rac1
{[%clk 0:00:31.4]} 32... Kg7 {[%clk 0:00:09.2]} 33. Bf5 {[%clk 0:00:30.2]} 33...
Rxc1 {[%clk 0:00:07.9]} 34. Rxc1 {[%clk 0:00:28.6]} 34... Re7 {[%clk 0:00:05.2]}
35. Rc7 {[%clk 0:00:25.2]} 35... Kf7 {[%clk 0:00:03.8]} 36. Bb4 {[%clk
0:00:21.4]} 36... Bxf5 {[%clk 0:00:01.4]} 37. Bxe7 {[%clk 0:00:21.3]} 37... Nxe7
{[%clk 0:00:02.1]} 38. Nxf5 {[%clk 0:00:20.6]} 38... Ng6 {[%clk 0:00:02.3]} 39.
Rxb7 {[%clk 0:00:17.9]} 39... a5 {[%clk 0:00:03.1]} 40. Ra7 {[%clk 0:00:17.8]}
40... Ke6 {[%clk 0:00:03.3]} 41. Nxe7 {[%clk 0:00:18.2]} 41... Nxe7 {[%clk
0:00:04.2]} 42. Rxa5 {[%clk 0:00:18.5]} 42... Ke5 {[%clk 0:00:04.9]} 43. Ra7
{[%clk 0:00:15.5]} 43... Ng6 {[%clk 0:00:04.8]} 44. a4 {[%clk 0:00:15.2]} 44...
Kf4 {[%clk 0:00:02]} 45. a5 {[%clk 0:00:15.5]} 45... Ne5 {[%clk 0:00:02.6]} 46.
a6 {[%clk 0:00:14.3]} 46... Nd3+ {[%clk 0:00:03.3]} 47. Ke2 {[%clk 0:00:14.1]}
47... Nc5 {[%clk 0:00:03.1]} 48. Rf7 {[%clk 0:00:12.6]} 48... Ke5 {[%clk
0:00:02.2]} 49. a7 {[%clk 0:00:12.5]} 49... h3 {[%clk 0:00:01.6]} 50. a8=Q
{[%clk 0:00:12.2]} 50... Ne6 {[%clk 0:00:01.5]} 51. Re7 {[%clk 0:00:09.1]} 51...
Kd6 {[%clk 0:00:01.2]} 52. Rxe6+ {[%clk 0:00:09.6]} 52... Kxe6 {[%clk
0:00:01.8]} 53. Qh8 {[%clk 0:00:09.2]} 53... Ke5 {[%clk 0:00:02.7]} 54. Qxh3
{[%clk 0:00:09.1]} 54... Kd4 {[%clk 0:00:03.6]} 55. Qh6 {[%clk 0:00:08.5]} 55...
Ke5 {[%clk 0:00:04.5]} 56. f4+ {[%clk 0:00:08.3]} 56... Ke6 {[%clk 0:00:05.4]}
57. f5+ {[%clk 0:00:08.2]} 57... Ke5 {[%clk 0:00:06.3]} 58. Qg7 {[%clk
0:00:08.4]} 58... Kf4 {[%clk 0:00:06.3]} 59. Qxf6 {[%clk 0:00:08.5]} 59... Kxg4
{[%clk 0:00:07.2]} 60. Qe5 {[%clk 0:00:08.6]} 60... d4 {[%clk 0:00:07.8]} 61. f6
{[%clk 0:00:08.4]} 61... d3+ {[%clk 0:00:08.2]} 62. Kxd3 {[%clk 0:00:08.9]}
62... Kf3 {[%clk 0:00:09.1]} 63. f7 {[%clk 0:00:09.3]} 63... Kg2 {[%clk
0:00:09.9]} 64. f8=Q {[%clk 0:00:09.4]} 64... Kh1 {[%clk 0:00:10.8]} 65. Qeg7
{[%clk 0:00:09.3]} 65... Kh2 {[%clk 0:00:11.2]} 66. Qfh8# {[%clk 0:00:09.8]} 1-0

[Event "Late-Titled-Tuesday-Blitz-April-16-2024"]
[Site "Chess.com"]
[Date "2024.04.16"]
[Round "3"]
[White "Nemsko"]
[Black "youngdinousaur"]
[Result "1-0"]
[WhiteElo "2437"]
[BlackElo "2229"]
[TimeControl "180+1"]
[EndTime "14:29:02 PDT"]
[Termination "Nemsko won by resignation"]

1. e4 {[%clk 0:03:00.9]} 1... c5 {[%clk 0:02:59]} 2. Nf3 {[%clk 0:02:56.6]} 2...
e6 {[%clk 0:02:59.4]} 3. d4 {[%clk 0:02:54.5]} 3... cxd4 {[%clk 0:03:00.3]} 4.
Nxd4 {[%clk 0:02:55.1]} 4... Nf6 {[%clk 0:03:01]} 5. Nc3 {[%clk 0:02:55]} 5...
Nc6 {[%clk 0:03:01.6]} 6. a3 {[%clk 0:02:48.7]} 6... d5 {[%clk 0:03:00.7]} 7.
exd5 {[%clk 0:02:48.4]} 7... Nxd5 {[%clk 0:03:01.6]} 8. Nxc6 {[%clk 0:02:42.8]}
8... bxc6 {[%clk 0:03:02.5]} 9. Ne4 {[%clk 0:02:36.6]} 9... Be7 {[%clk
0:03:02.1]} 10. Bd3 {[%clk 0:02:36.6]} 10... O-O {[%clk 0:03:01.5]} 11. O-O
{[%clk 0:02:36.5]} 11... Rb8 {[%clk 0:02:55.3]} 12. Qf3 {[%clk 0:02:13.6]} 12...
e5 {[%clk 0:02:47]} 13. c4 {[%clk 0:02:04.7]} 13... Nf6 {[%clk 0:02:33.4]} 14.
Rd1 {[%clk 0:01:35]} 14... Qc7 {[%clk 0:02:21.8]} 15. Nxf6+ {[%clk 0:01:18.9]}
15... Bxf6 {[%clk 0:02:22.7]} 16. b4 {[%clk 0:00:59.5]} 16... Be6 {[%clk
0:01:56.3]} 17. Bb2 {[%clk 0:00:49.7]} 17... Rfd8 {[%clk 0:01:55.2]} 18. Rd2
{[%clk 0:00:42.6]} 18... Rd7 {[%clk 0:01:35.2]} 19. Rc2 {[%clk 0:00:28.5]} 19...
Rbd8 {[%clk 0:01:33.2]} 20. Be4 {[%clk 0:00:23.6]} 20... c5 {[%clk 0:01:20.5]}
21. b5 {[%clk 0:00:19.4]} 21... Rd2 {[%clk 0:01:15.1]} 22. Rac1 {[%clk
0:00:18.8]} 22... Qd6 {[%clk 0:01:11.5]} 23. h3 {[%clk 0:00:15.7]} 23... Rxc2
{[%clk 0:00:59.7]} 24. Rxc2 {[%clk 0:00:16.6]} 24... Qd1+ {[%clk 0:00:59.6]} 25.
Qxd1 {[%clk 0:00:14.6]} 25... Rxd1+ {[%clk 0:01:00.5]} 26. Kh2 {[%clk
0:00:14.5]} 26... g6 {[%clk 0:00:51.2]} 27. f4 {[%clk 0:00:09.2]} 27... Re1
{[%clk 0:00:45.8]} 28. fxe5 {[%clk 0:00:03.9]} 28... Bg7 {[%clk 0:00:31.2]} 29.
Bd5 {[%clk 0:00:02.4]} 29... Bxe5+ {[%clk 0:00:25]} 30. Bxe5 {[%clk 0:00:02.2]}
30... Rxe5 {[%clk 0:00:25.9]} 31. Bxe6 {[%clk 0:00:02.1]} 31... Rxe6 {[%clk
0:00:25.7]} 32. Kg3 {[%clk 0:00:01.7]} 32... Re3+ {[%clk 0:00:25]} 33. Kf4
{[%clk 0:00:02.3]} 33... Rxa3 {[%clk 0:00:25.7]} 34. Ke5 {[%clk 0:00:02.6]}
34... Rd3 {[%clk 0:00:23]} 35. Ra2 {[%clk 0:00:02.3]} 35... Rd4 {[%clk
0:00:22.5]} 36. Ra4 {[%clk 0:00:02.2]} 36... h5 {[%clk 0:00:20.3]} 37. g3 {[%clk
0:00:02.2]} 37... Kg7 {[%clk 0:00:19.6]} 38. Rxa7 {[%clk 0:00:02]} 38... Rxc4
{[%clk 0:00:19.7]} 39. b6 {[%clk 0:00:02.9]} 39... Rb4 {[%clk 0:00:19.3]} 40.
Rb7 {[%clk 0:00:03.3]} 40... c4 {[%clk 0:00:18.8]} 41. Kd4 {[%clk 0:00:04]}
41... Rb3 {[%clk 0:00:09.7]} 42. Kxc4 {[%clk 0:00:02.3]} 42... Rxg3 {[%clk
0:00:10.1]} 43. Kc5 {[%clk 0:00:01.4]} 43... Rxh3 {[%clk 0:00:09.8]} 44. Rd7
{[%clk 0:00:01.9]} 44... Rh1 {[%clk 0:00:09.2]} 45. Rd4 {[%clk 0:00:02.2]} 45...
Rc1+ {[%clk 0:00:08.7]} 46. Rc4 {[%clk 0:00:02.5]} 46... Rb1 {[%clk 0:00:08.4]}
47. Rb4 {[%clk 0:00:03]} 47... Rc1+ {[%clk 0:00:09]} 48. Rc4 {[%clk 0:00:03.2]}
48... Rd1 {[%clk 0:00:07.9]} 49. b7 {[%clk 0:00:03.1]} 49... Rd8 {[%clk
0:00:08.6]} 50. Kb6 {[%clk 0:00:03.7]} 50... Rb8 {[%clk 0:00:09.1]} 51. Kc7
{[%clk 0:00:04]} 51... Rxb7+ {[%clk 0:00:09.4]} 52. Kxb7 {[%clk 0:00:04.9]}
52... f5 {[%clk 0:00:08.3]} 53. Kc6 {[%clk 0:00:04.9]} 53... Kf6 {[%clk
0:00:08.5]} 54. Kd5 {[%clk 0:00:05.4]} 54... g5 {[%clk 0:00:08.5]} 55. Rc6+
{[%clk 0:00:05.8]} 55... Kg7 {[%clk 0:00:08.3]} 56. Ke5 {[%clk 0:00:06.5]} 56...
f4 {[%clk 0:00:08.2]} 57. Kf5 {[%clk 0:00:05.1]} 57... f3 {[%clk 0:00:03.4]} 58.
Kxg5 {[%clk 0:00:05]} 58... f2 {[%clk 0:00:03.9]} 59. Rf6 {[%clk 0:00:05]} 59...
h4 {[%clk 0:00:04]} 60. Rxf2 {[%clk 0:00:05.2]} 60... h3 {[%clk 0:00:04.9]} 61.
Rh2 {[%clk 0:00:05.7]} 1-0

[Event "Late-Titled-Tuesday-Blitz-April-16-2024"]
[Site "Chess.com"]
[Date "2024.04.16"]
[Round "3"]
[White "Fandorine"]
[Black "albi1999"]
[Result "1/2-1/2"]
[WhiteElo "2906"]
[BlackElo "2679"]
[TimeControl "180+1"]
[EndTime "14:29:06 PDT"]
[Termination "Game drawn by repetition"]

1. e4 {[%clk 0:03:00.9]} 1... e5 {[%clk 0:02:54.8]} 2. Nf3 {[%clk 0:02:56.5]}
2... Nc6 {[%clk 0:02:54.9]} 3. d4 {[%clk 0:02:55.7]} 3... exd4 {[%clk
0:02:54.4]} 4. Nxd4 {[%clk 0:02:56.6]} 4... Bb4+ {[%clk 0:02:49.4]} 5. c3 {[%clk
0:02:55.8]} 5... Be7 {[%clk 0:02:49.7]} 6. Bf4 {[%clk 0:02:51.7]} 6... d6 {[%clk
0:02:49]} 7. Nxc6 {[%clk 0:02:44]} 7... bxc6 {[%clk 0:02:36.5]} 8. Nd2 {[%clk
0:02:44.9]} 8... Nf6 {[%clk 0:02:35.1]} 9. Bd3 {[%clk 0:02:45.8]} 9... O-O
{[%clk 0:02:34.8]} 10. O-O {[%clk 0:02:45.5]} 10... Nd7 {[%clk 0:02:32.9]} 11.
Re1 {[%clk 0:02:45]} 11... Bg5 {[%clk 0:02:31.8]} 12. Bg3 {[%clk 0:02:41.2]}
12... Re8 {[%clk 0:02:30.1]} 13. Nc4 {[%clk 0:02:28.2]} 13... Bh4 {[%clk
0:02:27.1]} 14. Qf3 {[%clk 0:02:08.6]} 14... Bxg3 {[%clk 0:02:25.3]} 15. Qxg3
{[%clk 0:02:08]} 15... Ne5 {[%clk 0:02:23.4]} 16. Rad1 {[%clk 0:01:54.8]} 16...
Nxc4 {[%clk 0:02:18]} 17. Bxc4 {[%clk 0:01:54.9]} 17... Qf6 {[%clk 0:02:15.1]}
18. e5 {[%clk 0:01:49.6]} 18... dxe5 {[%clk 0:02:05]} 19. Rxe5 {[%clk
0:01:46.1]} 19... Bf5 {[%clk 0:01:19.8]} 20. Rxe8+ {[%clk 0:01:37.2]} 20... Rxe8
{[%clk 0:01:20.7]} 21. Qxc7 {[%clk 0:01:37.1]} 21... g6 {[%clk 0:00:47.7]} 22.
h3 {[%clk 0:01:27.3]} 22... Re7 {[%clk 0:00:40.9]} 23. Qb8+ {[%clk 0:01:03.5]}
23... Kg7 {[%clk 0:00:40.1]} 24. Rd8 {[%clk 0:01:04.4]} 24... Re1+ {[%clk
0:00:29.3]} 25. Kh2 {[%clk 0:01:04.5]} 25... Bxh3 {[%clk 0:00:23.9]} 26. Rg8+
{[%clk 0:00:40.3]} 26... Kh6 {[%clk 0:00:24]} 27. Qf8+ {[%clk 0:00:40.7]} 27...
Kh5 {[%clk 0:00:24]} 28. Qxf7 {[%clk 0:00:18.6]} 28... Qxf7 {[%clk 0:00:10.9]}
29. Bxf7 {[%clk 0:00:18.3]} 29... Bf5 {[%clk 0:00:07.7]} 30. Bb3 {[%clk
0:00:12]} 30... Re2 {[%clk 0:00:07.1]} 31. Kg3 {[%clk 0:00:06.7]} 31... Rxb2
{[%clk 0:00:06.5]} 32. Rg7 {[%clk 0:00:06.9]} 32... Bc2 {[%clk 0:00:04.2]} 33.
f4 {[%clk 0:00:04]} 33... Kh6 {[%clk 0:00:03]} 34. Rb7 {[%clk 0:00:03]} 34...
Bxb3 {[%clk 0:00:02.7]} 35. axb3 {[%clk 0:00:03.9]} 35... Rc2 {[%clk 0:00:02.6]}
36. c4 {[%clk 0:00:04.2]} 36... a5 {[%clk 0:00:02.9]} 37. Kh3 {[%clk 0:00:03.9]}
37... a4 {[%clk 0:00:03.2]} 38. bxa4 {[%clk 0:00:03.8]} 38... Rxc4 {[%clk
0:00:03.2]} 39. g3 {[%clk 0:00:03.4]} 39... Rxa4 {[%clk 0:00:03.3]} 40. Rc7
{[%clk 0:00:04.3]} 40... Rc4 {[%clk 0:00:03]} 41. Kg4 {[%clk 0:00:03.4]} 41...
c5 {[%clk 0:00:02.8]} 42. Kh3 {[%clk 0:00:01.6]} 42... Rc1 {[%clk 0:00:02.9]}
43. Kh4 {[%clk 0:00:02.3]} 43... Rh1+ {[%clk 0:00:02.4]} 44. Kg4 {[%clk
0:00:02.7]} 44... Rc1 {[%clk 0:00:03.3]} 45. Kf3 {[%clk 0:00:03]} 45... Rf1+
{[%clk 0:00:03.3]} 46. Kg2 {[%clk 0:00:03.3]} 46... Rc1 {[%clk 0:00:03.3]} 47.
g4 {[%clk 0:00:03.7]} 47... g5 {[%clk 0:00:03.8]} 48. f5 {[%clk 0:00:01.8]}
48... Rc3 {[%clk 0:00:04.2]} 49. Kf2 {[%clk 0:00:02.2]} 49... c4 {[%clk
0:00:04.6]} 50. Kg2 {[%clk 0:00:02.8]} 50... Rc2+ {[%clk 0:00:03.1]} 51. Kf3
{[%clk 0:00:02.8]} 51... Rc3+ {[%clk 0:00:03.7]} 52. Ke4 {[%clk 0:00:03.2]}
52... Rg3 {[%clk 0:00:04.2]} 53. Ke5 {[%clk 0:00:03.1]} 53... Rxg4 {[%clk
0:00:04.3]} 54. f6 {[%clk 0:00:02.3]} 54... Rf4 {[%clk 0:00:04.8]} 55. Ke6
{[%clk 0:00:02.4]} 55... Kg6 {[%clk 0:00:04.9]} 56. Rg7+ {[%clk 0:00:02.4]}
56... Kh6 {[%clk 0:00:05.5]} 57. Rg8 {[%clk 0:00:02.8]} 57... c3 {[%clk
0:00:05.5]} 58. f7 {[%clk 0:00:02.9]} 58... c2 {[%clk 0:00:04.5]} 59. Rc8 {[%clk
0:00:03.2]} 59... Kg7 {[%clk 0:00:03.1]} 60. Rg8+ {[%clk 0:00:02.6]} 60... Kh6
{[%clk 0:00:03.5]} 61. Rc8 {[%clk 0:00:03.2]} 61... Kg7 {[%clk 0:00:03.9]} 62.
Rg8+ {[%clk 0:00:03.4]} 62... Kh6 {[%clk 0:00:04.4]} 1/2-1/2

[Event "Late-Titled-Tuesday-Blitz-April-16-2024"]
[Site "Chess.com"]
[Date "2024.04.16"]
[Round "3"]
[White "english_player_89"]
[Black "GM_dmitrij"]
[Result "0-1"]
[WhiteElo "2519"]
[BlackElo "2988"]
[TimeControl "180+1"]
[EndTime "14:29:09 PDT"]
[Termination "GM_dmitrij won on time"]

1. e4 {[%clk 0:03:00.9]} 1... e5 {[%clk 0:02:59.7]} 2. Nf3 {[%clk 0:03:00.9]}
2... Nc6 {[%clk 0:03:00.6]} 3. Bc4 {[%clk 0:03:00.5]} 3... Nf6 {[%clk
0:02:59.8]} 4. d3 {[%clk 0:03:00.7]} 4... Be7 {[%clk 0:02:59.9]} 5. c3 {[%clk
0:03:00]} 5... O-O {[%clk 0:03:00.8]} 6. O-O {[%clk 0:02:59.2]} 6... d5 {[%clk
0:03:01.1]} 7. exd5 {[%clk 0:02:59.1]} 7... Nxd5 {[%clk 0:03:02]} 8. h3 {[%clk
0:02:59.1]} 8... Kh8 {[%clk 0:03:01.2]} 9. Re1 {[%clk 0:02:58.3]} 9... f6 {[%clk
0:03:00.4]} 10. d4 {[%clk 0:02:57.3]} 10... Nb6 {[%clk 0:02:59.6]} 11. Bb3
{[%clk 0:02:56]} 11... exd4 {[%clk 0:02:59.8]} 12. Nxd4 {[%clk 0:02:50.5]} 12...
Nxd4 {[%clk 0:02:59]} 13. Qxd4 {[%clk 0:02:45.9]} 13... Qxd4 {[%clk 0:02:45.9]}
14. cxd4 {[%clk 0:02:46.8]} 14... Bd6 {[%clk 0:02:46.6]} 15. Nc3 {[%clk
0:02:46.5]} 15... Bd7 {[%clk 0:02:42]} 16. Ne4 {[%clk 0:02:42.8]} 16... Rfe8
{[%clk 0:02:41.6]} 17. Bd2 {[%clk 0:02:38.1]} 17... Bf8 {[%clk 0:02:40.8]} 18.
Nc5 {[%clk 0:02:37.6]} 18... Bc6 {[%clk 0:02:38.8]} 19. Bf4 {[%clk 0:02:29.4]}
19... Bd6 {[%clk 0:02:28.6]} 20. Bxd6 {[%clk 0:02:23.1]} 20... cxd6 {[%clk
0:02:29.5]} 21. Ne6 {[%clk 0:02:15.9]} 21... Re7 {[%clk 0:02:23.4]} 22. Nf4
{[%clk 0:02:06.1]} 22... Rae8 {[%clk 0:02:19.6]} 23. Rxe7 {[%clk 0:02:04.8]}
23... Rxe7 {[%clk 0:02:20.5]} 24. f3 {[%clk 0:02:03.6]} 24... g6 {[%clk
0:02:13.2]} 25. Kf2 {[%clk 0:02:00.8]} 25... Kg7 {[%clk 0:02:12.6]} 26. Re1
{[%clk 0:02:00]} 26... Rxe1 {[%clk 0:01:57]} 27. Kxe1 {[%clk 0:02:00.9]} 27...
Bd7 {[%clk 0:01:57.1]} 28. Kd2 {[%clk 0:01:52.3]} 28... g5 {[%clk 0:01:55.8]}
29. Nd5 {[%clk 0:01:45.2]} 29... Nc8 {[%clk 0:01:55.1]} 30. Ke3 {[%clk
0:01:43.8]} 30... Bc6 {[%clk 0:01:53.5]} 31. Nc3 {[%clk 0:01:42.2]} 31... Ne7
{[%clk 0:01:52.7]} 32. Ne4 {[%clk 0:01:40.7]} 32... Nf5+ {[%clk 0:01:51.3]} 33.
Kd3 {[%clk 0:01:23.1]} 33... Bb5+ {[%clk 0:01:19.8]} 34. Kc3 {[%clk 0:01:20.3]}
34... Bf1 {[%clk 0:01:11.2]} 35. g4 {[%clk 0:01:12.9]} 35... Nh4 {[%clk
0:01:10.8]} 36. Nxd6 {[%clk 0:01:11.9]} 36... Nxf3 {[%clk 0:01:11.3]} 37. Bd5
{[%clk 0:01:01.4]} 37... Nh2 {[%clk 0:00:58.7]} 38. Ne8+ {[%clk 0:00:55.2]}
38... Kg6 {[%clk 0:00:55.3]} 39. Be4+ {[%clk 0:00:55.8]} 39... Kf7 {[%clk
0:00:55.4]} 40. Nd6+ {[%clk 0:00:55.6]} 40... Ke7 {[%clk 0:00:55.2]} 41. Nxb7
{[%clk 0:00:55.4]} 41... Bxh3 {[%clk 0:00:53.8]} 42. Bxh7 {[%clk 0:00:42.5]}
42... Nxg4 {[%clk 0:00:44.7]} 43. Na5 {[%clk 0:00:32.7]} 43... Bg2 {[%clk
0:00:43.3]} 44. Kd3 {[%clk 0:00:24.9]} 44... Bd5 {[%clk 0:00:40.7]} 45. b3
{[%clk 0:00:21.6]} 45... Nf2+ {[%clk 0:00:37.7]} 46. Ke3 {[%clk 0:00:20.2]}
46... Ng4+ {[%clk 0:00:38.2]} 47. Kd3 {[%clk 0:00:20.6]} 47... Nh2 {[%clk
0:00:37]} 48. Be4 {[%clk 0:00:19.8]} 48... Ke6 {[%clk 0:00:34.1]} 49. Nc4 {[%clk
0:00:13.5]} 49... Bxe4+ {[%clk 0:00:31.2]} 50. Kxe4 {[%clk 0:00:14.4]} 50... f5+
{[%clk 0:00:32.1]} 51. Ke3 {[%clk 0:00:13.7]} 51... Ng4+ {[%clk 0:00:30.7]} 52.
Kf3 {[%clk 0:00:13.5]} 52... Nf6 {[%clk 0:00:29.5]} 53. Ne5 {[%clk 0:00:10.7]}
53... g4+ {[%clk 0:00:22.1]} 54. Kf4 {[%clk 0:00:09.2]} 54... Nd5+ {[%clk
0:00:22.4]} 55. Kg3 {[%clk 0:00:08.2]} 55... Nc3 {[%clk 0:00:20.9]} 56. a4
{[%clk 0:00:07.9]} 56... Ne2+ {[%clk 0:00:20.7]} 57. Kf2 {[%clk 0:00:07.8]}
57... Nxd4 {[%clk 0:00:21.6]} 58. Ng6 {[%clk 0:00:05.6]} 58... Nxb3 {[%clk
0:00:21.1]} 59. Ke3 {[%clk 0:00:06]} 59... Kf6 {[%clk 0:00:20.5]} 60. Nf8 {[%clk
0:00:05.8]} 60... a5 {[%clk 0:00:18.8]} 61. Kf4 {[%clk 0:00:05.4]} 61... Nc5
{[%clk 0:00:18.7]} 62. Nh7+ {[%clk 0:00:05.1]} 62... Kg7 {[%clk 0:00:17.7]} 63.
Ng5 {[%clk 0:00:05]} 63... Kg6 {[%clk 0:00:18.3]} 0-1

[Event "Late-Titled-Tuesday-Blitz-April-16-2024"]
[Site "Chess.com"]
[Date "2024.04.16"]
[Round "3"]
[White "ferdipy"]
[Black "WindWhistler11"]
[Result "1/2-1/2"]
[WhiteElo "2309"]
[BlackElo "2497"]
[TimeControl "180+1"]
[EndTime "14:29:11 PDT"]
[Termination "Game drawn - insufficient material"]

1. e4 {[%clk 0:02:55.5]} 1... e6 {[%clk 0:02:59.4]} 2. d4 {[%clk 0:02:53]} 2...
d5 {[%clk 0:03:00.1]} 3. e5 {[%clk 0:02:53.5]} 3... c5 {[%clk 0:02:59.9]} 4. c3
{[%clk 0:02:54.2]} 4... Nc6 {[%clk 0:03:00.6]} 5. Nf3 {[%clk 0:02:54.5]} 5...
Bd7 {[%clk 0:03:01.3]} 6. a3 {[%clk 0:02:54.6]} 6... Nge7 {[%clk 0:03:01.9]} 7.
b4 {[%clk 0:02:54.9]} 7... cxd4 {[%clk 0:03:02.5]} 8. cxd4 {[%clk 0:02:55.4]}
8... Nf5 {[%clk 0:03:03.3]} 9. Be3 {[%clk 0:02:55.3]} 9... Nxe3 {[%clk
0:03:00.9]} 10. fxe3 {[%clk 0:02:54.8]} 10... f5 {[%clk 0:03:00.9]} 11. exf6
{[%clk 0:02:54.9]} 11... Qxf6 {[%clk 0:02:58.3]} 12. Bd3 {[%clk 0:02:55.3]}
12... Qh6 {[%clk 0:02:55.5]} 13. Qe2 {[%clk 0:02:52.5]} 13... Bd6 {[%clk
0:02:53.8]} 14. Nc3 {[%clk 0:02:27.4]} 14... O-O {[%clk 0:02:47.4]} 15. b5
{[%clk 0:02:18.6]} 15... Ne7 {[%clk 0:02:37.3]} 16. O-O {[%clk 0:02:15]} 16...
Rac8 {[%clk 0:02:20.4]} 17. Rac1 {[%clk 0:02:10]} 17... Bxa3 {[%clk 0:02:17]}
18. Rc2 {[%clk 0:02:06.7]} 18... Bb4 {[%clk 0:02:14.7]} 19. Nd1 {[%clk
0:02:00.6]} 19... Rxc2 {[%clk 0:02:00]} 20. Qxc2 {[%clk 0:02:01.5]} 20... Bd6
{[%clk 0:01:52.8]} 21. g3 {[%clk 0:01:35.2]} 21... Be8 {[%clk 0:01:36.4]} 22.
Ne1 {[%clk 0:01:28.5]} 22... Rxf1+ {[%clk 0:01:33]} 23. Bxf1 {[%clk 0:01:29.4]}
23... Bh5 {[%clk 0:01:29.8]} 24. Be2 {[%clk 0:01:14.2]} 24... Bg6 {[%clk
0:01:15.9]} 25. Nd3 {[%clk 0:01:09.4]} 25... Qg5 {[%clk 0:01:10.2]} 26. Qa2
{[%clk 0:01:00.4]} 26... Be4 {[%clk 0:00:50.4]} 27. N3f2 {[%clk 0:00:54.7]}
27... Nf5 {[%clk 0:00:28.8]} 28. Nxe4 {[%clk 0:00:52.7]} 28... dxe4 {[%clk
0:00:23.1]} 29. Qxe6+ {[%clk 0:00:53.3]} 29... Kf8 {[%clk 0:00:22.9]} 30. Qxe4
{[%clk 0:00:51.6]} 30... h5 {[%clk 0:00:16.5]} 31. Qxb7 {[%clk 0:00:33.7]} 31...
Bxg3 {[%clk 0:00:14.9]} 32. hxg3 {[%clk 0:00:28.3]} 32... Nxg3 {[%clk
0:00:15.8]} 33. Qf3+ {[%clk 0:00:21.4]} 33... Kg8 {[%clk 0:00:15.4]} 34. Kf2
{[%clk 0:00:20.7]} 34... h4 {[%clk 0:00:14.9]} 35. Qg4 {[%clk 0:00:20.2]} 35...
Qf6+ {[%clk 0:00:14.4]} 36. Kg2 {[%clk 0:00:19.9]} 36... Qe7 {[%clk 0:00:13.2]}
37. Bf3 {[%clk 0:00:17.7]} 37... Qc7 {[%clk 0:00:11.8]} 38. Bd5+ {[%clk
0:00:17.7]} 38... Kf8 {[%clk 0:00:10.9]} 39. Qf4+ {[%clk 0:00:17.9]} 39... Qxf4
{[%clk 0:00:09.8]} 40. exf4 {[%clk 0:00:18.8]} 40... Ne2 {[%clk 0:00:10.5]} 41.
Kf3 {[%clk 0:00:12.2]} 41... Nxd4+ {[%clk 0:00:10.7]} 42. Kg4 {[%clk 0:00:12.6]}
42... Nxb5 {[%clk 0:00:11.6]} 43. Kxh4 {[%clk 0:00:12.1]} 43... Nc7 {[%clk
0:00:12.3]} 44. Bb3 {[%clk 0:00:11.3]} 44... a5 {[%clk 0:00:12.1]} 45. Kg5
{[%clk 0:00:11.9]} 45... Na6 {[%clk 0:00:10.5]} 46. Nc3 {[%clk 0:00:11.7]} 46...
Nc5 {[%clk 0:00:10.9]} 47. Bc2 {[%clk 0:00:11.3]} 47... Ne6+ {[%clk 0:00:08.6]}
48. Kf5 {[%clk 0:00:09.9]} 48... Nd4+ {[%clk 0:00:09.1]} 49. Ke4 {[%clk
0:00:09]} 49... Nxc2 {[%clk 0:00:10]} 50. Kd3 {[%clk 0:00:09.3]} 50... Nb4+
{[%clk 0:00:10.5]} 51. Kc4 {[%clk 0:00:09.3]} 51... Kf7 {[%clk 0:00:08.5]} 52.
Kb5 {[%clk 0:00:09.4]} 52... Nd3 {[%clk 0:00:08.5]} 53. Ne2 {[%clk 0:00:08.9]}
53... Nxf4 {[%clk 0:00:09.2]} 54. Nxf4 {[%clk 0:00:07.9]} 54... g5 {[%clk
0:00:10.1]} 55. Ng2 {[%clk 0:00:08.2]} 55... Kf6 {[%clk 0:00:09.2]} 56. Kxa5
{[%clk 0:00:08.7]} 56... Kf5 {[%clk 0:00:10.1]} 57. Kb4 {[%clk 0:00:08.8]} 57...
Ke4 {[%clk 0:00:10.8]} 58. Kc3 {[%clk 0:00:09]} 58... Kf3 {[%clk 0:00:11.5]} 59.
Ne1+ {[%clk 0:00:09.1]} 59... Ke2 {[%clk 0:00:11.4]} 60. Nd3 {[%clk 0:00:08.3]}
60... g4 {[%clk 0:00:12]} 61. Kd4 {[%clk 0:00:08.3]} 61... g3 {[%clk 0:00:11.7]}
62. Ke4 {[%clk 0:00:06.9]} 62... Kf1 {[%clk 0:00:10.6]} 63. Nf4 {[%clk 0:00:07]}
63... Kf2 {[%clk 0:00:10.5]} 64. Kf5 {[%clk 0:00:06.8]} 64... Kf3 {[%clk
0:00:10.5]} 65. Kg5 {[%clk 0:00:07.4]} 65... Kf2 {[%clk 0:00:08.8]} 66. Kg4
{[%clk 0:00:07.9]} 66... g2 {[%clk 0:00:08.8]} 67. Nxg2 {[%clk 0:00:08]} 1/2-1/2